Cogmind - Beta 15 @@@ ROGUE MODE // 2025.09.02 @ 21:35:35 Player: JTMusky Result: Smashed by cave-in Performance ------------- Evolutions (2) 1000 Regions Visited (3) 600 Robots Destroyed (13) 65 Value Destroyed (513) 513 Prototype IDs (0) 0 Alien Tech Used (0) 0 Bonus (-51) -51 TOTAL SCORE: 2127 Bonus ------- Friendly Fire -51 Cogmind --------- Core Integrity 0/550 Matter 300/300 Energy 74/100 System Corruption 4% Temperature Cool (0) Movement Core (50) Location -8/Materials Parts ------- > --- POWER (1) -------- (None) > --- PROPULSION (3) --- (None) > --- UTILITY (5) ------ (None) > --- WEAPON (2) ------- (None) > --- INVENTORY (5) ---- Ion Engine Light Ion Engine Katana Peak State ------------ > --- POWER ------------ Subdweller Power Source > --- PROPULSION ------- Compact Wheel Subdweller Monowheel > --- UTILITY ---------- Thermal Generator Subdweller Optics Seismic Detector > --- WEAPON ----------- Katana Katana > --- INVENTORY -------- Ion Engine Light Ion Engine [Rating: 17] Favorites ----------- Power Ion Engine Engine Ion Engine Propulsion Compact Wheel Wheel Compact Wheel Utility Seismic Detector Device Seismic Detector Protection Weapon Shielding Weapon EM Pulse Gun Energy Gun EM Pulse Gun Launcher Grenade Launcher Slashing Weapon Katana Build | -11 -10 -10 -8 ------- Run | Yrd Mat Sub Mat Slots Evolved 4 | . . . 4 Power . | . . . . Propulsion 1 | . . . 1 Utility 3 | . . . 3 Weapon . | . . . . Parts Attached 14 | 5 2 4 3 Power 2 | 1 . 1 . Engine 2 | 1 . 1 . Core . | . . . . Reactor . | . . . . Propulsion 3 | 2 . 1 . Treads . | . . . . Leg . | . . . . Wheel 3 | 2 . 1 . Hover . | . . . . Flight . | . . . . Utility 4 | . 2 1 1 Device 3 | . 1 1 1 Storage . | . . . . Processor . | . . . . Hackware . | . . . . Protection 1 | . 1 . . Artifact . | . . . . Weapon 5 | 2 . 1 2 Energy Gun 2 | 2 . . . Energy Cannon . | . . . . Ballistic Gun . | . . . . Ballistic Cannon . | . . . . Launcher 1 | . . 1 . Special Weapon . | . . . . Impact Weapon . | . . . . Slashing Weapon 2 | . . . 2 Piercing Weapon . | . . . . Special Melee Weapon . | . . . . Unidentified Prototypes . | . . . . Parts Lost 11 | . . 3 8 Power 1 | . . . 1 Propulsion 3 | . . 1 2 Utility 3 | . . . 3 Weapon 4 | . . 2 2 Highest Loss Streak 6 | . . 2 6 To Critical Strikes . | . . . . Average Backups 2 | . 1 1 2 Power 1 | . 1 1 2 Propulsion . | . . . . Utility . | . . . . Weapon . | . . . . Tool/Special . | . . . . Unused Backups 1 | . . . 1 Power 1 | . . . 1 Propulsion . | . . . . Utility . | . . . . Weapon . | . . . . Tool/Special . | . . . . Average Slot Usage (%) 74 | . 85 90 40 Engine 11 | . 14 14 5 Wheel 22 | . 28 26 10 Device 13 | . 5 16 15 Protection 7 | . 8 11 . Energy Gun 11 | . 28 8 . Launcher 5 | . . 11 1 Slashing Weapon 1 | . . . 6 Peak Build Rating 17 | 5 7 9 17 Average Rating 7 | 3 6 6 8 On Entrance 5 | . 5 7 9 Naked Turns 4 | . . . 4 Heaviest Build 19 | 9 11 12 19 Greatest Support 36 | 26 26 36 36 Greatest Overweight (x) 3 | 2 . . 3 Average Overweight (x) . | . . . . Largest Inventory Capacity 5 | 5 5 5 5 Average Capacity 5 | 5 5 5 5 Most Carried 5 | 1 2 5 5 Average Carried 2 | . 1 3 2 Final Capacity 5 | 5 5 5 5 Final Carried 5 | 1 2 5 3 Class Distribution -------------------- 100% | Mutant Dominant Class ---------------- Mutant | -10/Materials Mutant | -10/Subcaves Mutant | -8/Materials Resources | -11 -10 -10 -8 ----------- Run | Yrd Mat Sub Mat Matter Collected 550 | 205 65 200 80 Remotely . | . . . . Salvage Created 502 | . 40 160 302 Parts 30 | . 5 10 15 Haulers Intercepted . | . . . . Recyclers Shooed 1 | . . . 1 Parts Field Recycled . | . . . . Retrieved Matter . | . . . . Parts Self-Destructed 5 | . . 5 . Prevented . | . . . . Kills | -11 -10 -10 -8 ------- Run | Yrd Mat Sub Mat Combat Hostiles Destroyed 13 | . 2 4 7 Melee 5 | . . . 5 Guns 2 | . 2 . . AOE 6 | . . 4 2 Classes Destroyed 4 | . 1 1 2 Swarmer 2 | . 2 . . Grunt 6 | . . . 6 Sentry 1 | . . . 1 Subdweller 4 | . . 4 . Best Kill Streak 2 | . 2 2 2 Combat Bots Only 2 | . 2 2 2 Max Kills in Single Turn 1 | . 1 1 1 Gunslinging . | . . . . Exploded 1 | . . 1 1 Melee 1 | . . . 1 Uniques/NPCs Destroyed . | . . . . Combat | -11 -10 -10 -8 -------- Run | Yrd Mat Sub Mat Hostile Shots Fired 83 | . 4 18 61 Missed 23 | . . 5 18 Hits 60 | . 4 13 43 Projectile 60 | . 4 13 43 Critical Strikes 3 | . . . 3 Damage Taken 1239 | . 40 334 865 Core 661 | . . 86 575 Absorbed by Shields . | . . . . Redirected to Shielding 45 | . . 45 . Core Remaining (%) 82 | 100 . 65 . Volleys Fired 27 | . 2 19 6 Largest 2 | . 2 1 1 Hottest 80 | . 80 40 30 Shots Fired 29 | . 4 19 6 Gun 7 | . 4 3 . Cannon . | . . . . Launcher 22 | . . 16 6 Special . | . . . . Kinetic . | . . . . Thermal . | . . . . Explosive 22 | . . 16 6 Electromagnetic 7 | . 4 3 . Robot Hit Streak 3 | . 1 3 2 Robot Miss Streak 2 | . 2 1 1 Penetration Max . | . . . . Secondary Targets 1 | . 1 . . Max Gunslinging Chain 1 | . 1 . . Shots Hit Robots 22 | . 2 3 17 Core Hits 24 | . 2 7 15 Critical Kills . | . . . . Critical Parts Destroyed . | . . . . Critical Strikes 1 | . . . 1 Sever 1 | . . . 1 Melee Attacks 29 | . . . 29 Impact . | . . . . Slashing 29 | . . . 29 Piercing . | . . . . Sneak Attacks 1 | . . . 1 Combat Hostiles . | . . . . Follow-up Attacks . | . . . . Damage Inflicted 1571 | . 23 686 862 Guns 35 | . 23 12 . Cannons . | . . . . Explosions 1092 | . . 674 418 Melee 443 | . . . 443 Ramming 1 | . . . 1 Kinetic . | . . . . Thermal . | . . . . Explosive 1092 | . . 674 418 Electromagnetic 35 | . 23 12 . Impact . | . . . . Slashing 443 | . . . 443 Piercing . | . . . . Highest Corruption 4 | . . . 4 Average Corruption 4 | . . . 4 Corruption Purged . | . . . . Corruption Blocked . | . . . . Effects 1 | . . . 1 Energy Discharges 1 | . . . 1 Overload Shots . | . . . . Overflow Damage 25 | . . . 25 Projectiles . | . . . . Explosions . | . . . . Melee 25 | . . . 25 Knockbacks . | . . . . Impact . | . . . . Kinetic . | . . . . Secondary . | . . . . Self-Inflicted Damage 58 | . . 58 . Shots 2 | . . 2 . Rammed 1 | . . . 1 Targets Rammed 1 | . . . 1 Kicked . | . . . . Crushed . | . . . . Highest Temperature 36 | . 36 . 18 Average Temperature 16 | . 20 . 10 Received Heat Transfer 384 | . . 24 360 Siege Activations . | . . . . Martial Activations . | . . . . Shielding Activations . | . . . . Robots Disrupted . | . . . . Combat Hostiles . | . . . . Robots Corrupted . | . . . . Combat Hostiles . | . . . . Parts Fried . | . . . . Impact Corruptions . | . . . . Robots Melted . | . . . . Combat Hostiles . | . . . . Parts Melted 1 | . 1 . . Heat Transferred . | . . . . Parts Sabotaged . | . . . . Parts Stolen . | . . . . Parts Stripped . | . . . . Power Chain Reactions . | . . . . Alert | -11 -10 -10 -8 ------- Run | Yrd Mat Sub Mat Maximum Alert Level . | . . . . Low Security (%) 100 | 100 100 . 100 Level 1 . | . . . . Level 2 . | . . . . Level 3 . | . . . . Level 4 . | . . . . Level 5 . | . . . . High Security . | . . . . Max Security . | . . . . Peak Influence 104 | . 40 . 104 Initial . | . . . . Average 29 | . 8 . 53 Influence Increases 314 | . 50 . 264 Destroy 0b10 Robot/C 180 | . 40 . 140 Destroy Leader 40 | . 10 . 30 Destroy Structure 19 | . . . 19 Lose Combat Pursuer 75 | . . . 75 Influence Decreases 240 | . 50 . 190 Time Decay 160 | . 50 . 110 Lost Part 80 | . . . 80 Squads Dispatched 2 | . . . 2 Investigation . | . . . . Extermination . | . . . . Reinforcement 2 | . . . 2 Assault . | . . . . Garrison . | . . . . Intercept . | . . . . Searches Triggered . | . . . . Construction Impeded . | . . . . Haulers Reinforced . | . . . . Active Scanning Responses . | . . . . Cargo Convoy Interrupts . | . . . . Stealth | -11 -10 -10 -8 --------- Run | Yrd Mat Sub Mat Distress Signals 1 | . . . 1 Communications Jammed . | . . . . Distress Signals . | . . . . Times Spotted 30 | . 3 7 20 Peak Tracking Total 8 | . 3 2 8 Tactical Retreats 2 | . . . 2 Traps | -11 -10 -10 -8 ------- Run | Yrd Mat Sub Mat Traps Triggered . | . . . . Indirectly . | . . . . Trap Hack Attempts . | . . . . Triggered . | . . . . Disarmed . | . . . . Reprogrammed . | . . . . Reused . | . . . . Traps Extracted . | . . . . Installed . | . . . . Triggered . | . . . . Machines | -11 -10 -10 -8 ---------- Run | Yrd Mat Sub Mat Machines Disabled . | . . . . Max in Single Turn . | . . . . Machines Repaired . | . . . . Machines Dismantled . | . . . . Machines Sabotaged . | . . . . Overloaded Fab Kills . | . . . . Hacking | -11 -10 -10 -8 --------- Run | Yrd Mat Sub Mat Machines Accessed . | . . . . Terminals . | . . . . Fabricators . | . . . . Repair Stations . | . . . . Recycling Units . | . . . . Scanalyzers . | . . . . Garrison Access . | . . . . Total Hacks . | . . . . Successful . | . . . . Failed . | . . . . Catastrophic . | . . . . Database Lockouts . | . . . . Manual . | . . . . Terminals . | . . . . Fabricators . | . . . . Repair Stations . | . . . . Recycling Units . | . . . . Scanalyzers . | . . . . Garrison Access . | . . . . Terminal Hacks . | . . . . Fabricator Hacks . | . . . . Repair Station Hacks . | . . . . Recycling Unit Hacks . | . . . . Scanalyzer . | . . . . Garrison Access Hacks . | . . . . Unauthorized Hacks . | . . . . Terminals . | . . . . Fabricators . | . . . . Repair Stations . | . . . . Recycling Units . | . . . . Scanalyzers . | . . . . Garrison Access . | . . . . Data Cores Recovered . | . . . . Used . | . . . . Hacking Detections . | . . . . Full Trace Events . | . . . . Feedback Events . | . . . . Feedback Blocked . | . . . . Robot Schematics Acquired . | . . . . Robots Built . | . . . . Authchips . | . . . . Time . | . . . . Total Robot Build Rating . | . . . . Part Schematics Acquired . | . . . . Parts Built . | . . . . Authchips . | . . . . Time . | . . . . Total Part Build Rating . | . . . . Parts Repaired . | . . . . Time . | . . . . Parts Recycled . | . . . . Recycled Matter . | . . . . Retrieved Matter . | . . . . Retrieved Components . | . . . . Parts Scanalyzed . | . . . . Part Schematics Acquired . | . . . . Parts Damaged . | . . . . Bothacking | -11 -10 -10 -8 ------------ Run | Yrd Mat Sub Mat Used RIF Installer . | . . . . Robots Hacked . | . . . . Non-combat . | . . . . Combat . | . . . . Robot Hacks Applied . | . . . . Relay Couplers Released . | . . . . Fabnet Peak Effective % . | . . . . Robots Rewired . | . . . . Allies Hacked . | . . . . Hacks Repelled . | . . . . Allies | -11 -10 -10 -8 -------- Run | Yrd Mat Sub Mat Total Allies . | . . . . Largest Group . | . . . . Highest-Rated Group . | . . . . Highest-Rated Ally . | . . . . Total Orders . | . . . . Ally Attacks . | . . . . Total Damage . | . . . . Kills . | . . . . Allies Corrupted . | . . . . Allies Melted . | . . . . Intel | -11 -10 -10 -8 ------- Run | Yrd Mat Sub Mat Active Infowar (turns) 637 | . 97 380 160 Optics 221 | . . 75 146 Seismic 637 | . 97 380 160 Robot Analysis Total . | . . . . Derelict Logs Recovered 1 | . . 1 . Drone Launches . | . . . . Drone Recoveries . | . . . . Exploration | -11 -10 -10 -8 ------------- Run | Yrd Mat Sub Mat Turns Passed 892 | 37 234 380 241 Spaces Moved 684 | 32 197 291 164 Core 85 | 11 . . 74 Treads . | . . . . Legs . | . . . . Wheels 599 | 21 197 291 90 Hover . | . . . . Flight . | . . . . Fastest Speed 50 | 50 90 90 50 Average Speed 89 | 90 90 92 83 Slowest Speed 200 | 150 90 105 200 Overloaded Moves . | . . . . Propulsion Burnouts . | . . . . Robots Hopped . | . . . . Potential Cave-ins 5 | . . . 5 Cave-ins Triggered 2 | . . . 2 Exploration Rate (%) 19 | 3 40 15 21 Regions Visited 3 Branch Regions 1 Pre-discovered Areas 2 | . . 2 . Known Exits Taken . | . . . . Unknown Exits Taken 3 | 1 1 1 . Scrap Searched 2 | . . 2 . Spaces Dug 19 | . . 7 12 Terrain Destroyed 102 | . . 74 28 Melee 12 | . . . 12 Projectile . | . . . . AOE 90 | . . 74 16 Terrain Rammed . | . . . . Walls Destroyed . | . . . . Machines Disabled . | . . . . Actions | -11 -10 -10 -8 --------- Run | Yrd Mat Sub Mat Total 890 | 37 248 385 220 Wait 121 | . 47 61 13 Move 681 | 31 196 290 164 Hop . | . . . . Pick Up 8 | 1 1 6 . Fast Attach 12 | 5 2 2 3 Attach 2 | . . 2 . Detach 2 | . . 1 1 Swap 1 | . . 1 . Drop 6 | . . 3 3 Fire 27 | . 2 19 6 Melee 29 | . . . 29 Ram 1 | . . . 1 Kick . | . . . . Crush . | . . . . Escape Stasis . | . . . . Rewire . | . . . . Trap . | . . . . Miscellaneous . | . . . . Route ------- -11/Scrapyard -10/Materials -10/Subcaves (discovered 2 exits: [*Mat] / [Scr]) -8/Materials History --------- Turn | Location | Event 21 | -11/Scrapyard | Discovered new exit (range 15) 38 | -11/Scrapyard | Entered Materials 39 | -10/Materials | Met a group of wandering Federalists 256 | -10/Materials | Discovered new exit (range 3) 272 | -10/Materials | Entered Subcaves 272 | -10/Subcaves | Accompanied by 2 allies 273 | -10/Subcaves | Continued accompanying wandering Federalists (3) 273 | -10/Subcaves | Approached by a straggling Scientist 274 | -10/Subcaves | Shifting Twisted Machinery released Sub. Beam Cannon 308 | -10/Subcaves | Learned location of Zion (-6) 308 | -10/Subcaves | Met a Zionite searching for "candidates" 309 | -10/Subcaves | Build established: Mutant 334 | -10/Subcaves | Shifting Twisted Machinery released Sub. Beam Cannon 434 | -10/Subcaves | Discovered new exit (range 16) 516 | -10/Subcaves | Lost 4 allies 556 | -10/Subcaves | Disturbed a concealed Subdweller 652 | -10/Subcaves | Entered Materials 652 | -8/Materials | Evolved 4 slots: Propulsion x1, Utility x3 819 | -8/Materials | Core integrity fell below 50% 845 | -8/Materials | Lost 6 parts (1p2n3u) 883 | -8/Materials | Core integrity fell below 20% 890 | -8/Materials | Crushed by falling debris 894 | -8/Materials | Crushed by falling debris 894 | -8/Materials | Smashed by cave-in Last Messages --------------- 00798_ Sub. Monowheel destroyed. 00798_ U-05 Engineer suffers critical hit (Blast). 00800_ K-01 Serf cleans the Electrolysis Chamber. 00802_ Sub. Power Source destroyed. 00808_ Y-45 Defender destroyed. 00812_ Seismic Detector destroyed. 00814_ Broken Sub. Optics destroyed. 00819_ G-50 Soldier destroyed. 00826_ Slug penetrates Wall. 00826_ Knocked back. 00832_ U-05 Engineer builds a Wall. [Achievement: Part-time Excavator] 00872_ U-05 Engineer builds a Wall. 00885_ The unstable cave ceiling collapses. 00890_ Crushed by falling debris. 00890_ Katana destroyed. 00890_ System corrupted by crushing effect (+4). 00892_ System corrupted: Energy discharge (-36). 00894_ The unstable cave ceiling collapses. 00894_ Crushed by falling debris. Map ----- +----------------------------------------------------+ | | | | | | | | | | | | | | | | | | | | | | | | | | | | | | | | | ?????????????????????????????????????????????????? | | ?????????????????????????????????????????????????? | | ?????????????????????????????????????????????????? | | ?????????????????????????????????????????????????? | | ????????????????????????????????????????????##???? | | ??????????????????????????????############## #???? | | ??????????+???????????????????# T # """ #????? | | ?????????? ???????????????????#! # """ ##???? | | ?????????? ?????????????####### # """ #???? | | ?????????? #????????????#@# ## # ##???? | | ?????????# #????????????##### % # #????? | | ?????????# #????????????# #?### # #????? | | ?????????+ +????????????##########/######+####???? | | ?????????# #???????? #???? | | ?????????# +???????? #???? | | ?????????# #???????? #???? | | ?????##### ##???????? ###+############## #???? | | ?????? #?###???????? ? ???????# #???? | | ??????? # ????????#?? ???????# #???? | | ???????? # !????????????"" ????????# #???? | | ????????# + ?????????????"" !!?????????# #???? | | ????????# #??????????????"" !??????????# #???? | | ????????# #?????????????? ??????????## ##??? | | ?######## ################+############ #??? | | ?# * #??? | | ?# %=! #??? | | ?# =%[ % #??? | | ?# ###+########+######### ########### #??? | | ?# #? ?# ! #???# ##!#############??? | | ?# #?[ ## #???# *#=!%[ #????????? | | ?# # ## """ #???# %/= * """ #????????? | | ## # """ ## """"" #???# [# !! """ #????????? | | # + """ ## """"" #???# # ! """ #????????? | | # # """ ## """"" #???# # #????????? | +----------------------------------------------------+ Best States ------------- Heat Dissipation 31 Energy Generation 15 Energy Capacity 250 Matter Stores 300 Matter Capacity 300 Sight Range 21 Terrain Scan Density 10 Weapon Shielding 33 Evasion (%) 50 Item Schematics ----------------- None Robot Schematics ------------------ None Fabricated ------------ Nothing Repaired ---------- Nothing Alien Tech Used ----------------- None Achievements -------------- Part-time Excavator Challenges ------------ None Game ------ Seed DeepPitchforkSpecial Manual? 0 Play Time 00:23:36 Cumulative 40.4 hours Start 2025.09.02 @ 21:14:31 End 2025.09.02 @ 21:35:35 Sessions 1 Manual Loads 0 Difficulty Rogue Special Mode None Game No. 55 Rogue 55 Adventurer 0 Explorer 0 Win Type - Total 0 Types 0/0/0/0/0/0/0/0/0/0 Lore% 14 Gallery% 17 Achievement% 20 Wizard Run 0 Options --------- Layout 2 ASCII 1 Keyboard 1 Movement Vi Keybinds 1 Fullscreen 0 Font 18/SmallcapsGlow Map View 27x26 Zoom Use 83% Tactical HUD 1 Map Filters NONE Filters NONE Steam 0 RUN: 682ffb5f-f317-4a2a-ab1e-1e8c9379da0f